Cogmind - Beta 12 @@@ ROGUE MODE // 2023.05.24 @ 22:05:52 Player: snowphil Result: Destroyed by G-47 Trooper with Particle Gun Performance ------------- Evolutions (0) 0 Regions Visited (2) 400 Robots Destroyed (21) 105 Value Destroyed (551) 551 Prototype IDs (3) 60 Alien Tech Used (0) 0 Bonus (0) 0 TOTAL SCORE: 1116 Bonus ------- None Cogmind --------- Core Integrity 0/250 Matter 224/300 Energy 136/160 System Corruption 0% Temperature Cool (22) Movement Walking (120) Location -10/Mines Parts ------- > --- POWER (1) -------- Light Nuclear Core > --- PROPULSION (2) --- Aluminum Leg Aluminum Leg > --- UTILITY (2) ------ Improved Heat Sink Small Storage Unit > --- WEAPON (2) ------- Beam Cannon Beam Cannon > --- INVENTORY (8) ---- Light Ion Engine Aluminum Leg Hover Unit Sensor Array Improved Targeting Computer Improved EM Shotgun Grenade Launcher Mining Claw Peak State ------------ > --- POWER ------------ Light Nuclear Core > --- PROPULSION ------- Aluminum Leg Aluminum Leg > --- UTILITY ---------- Improved Heat Sink Small Storage Unit > --- WEAPON ----------- Beam Cannon Beam Cannon > --- INVENTORY -------- Light Ion Engine Aluminum Leg Hover Unit Sensor Array Improved Targeting Computer Improved EM Shotgun Grenade Launcher Mining Claw [Rating: 12] Favorites ----------- Power Light Ion Engine Engine Light Ion Engine Power Core Light Nuclear Core Propulsion Aluminum Leg Leg Aluminum Leg Hover Unit Hover Unit Utility Small Storage Unit Device Improved Heat Sink Storage Small Storage Unit Processor Visual Processing Unit Weapon Beam Cannon Energy Gun Small Laser Energy Cannon Beam Cannon Special Weapon Mining Laser Slashing Weapon Mining Claw Build | -11 -10 -10 ------- Run | Jun Mat Min Slots Evolved . | . . . Power . | . . . Propulsion . | . . . Utility . | . . . Weapon . | . . . Parts Attached 34 | 4 25 5 Power 6 | . 5 1 Engine 5 | . 5 . Core 1 | . . 1 Reactor . | . . . Propulsion 9 | 2 6 1 Treads . | . . . Leg 6 | 2 3 1 Wheel . | . . . Hover 3 | . 3 . Flight . | . . . Utility 3 | . 2 1 Device 1 | . . 1 Storage 1 | . 1 . Processor 1 | . 1 . Hackware . | . . . Protection . | . . . Artifact . | . . . Weapon 16 | 2 12 2 Energy Gun 6 | 2 4 . Energy Cannon 6 | . 5 1 Ballistic Gun . | . . . Ballistic Cannon . | . . . Launcher . | . . . Special Weapon 1 | . 1 . Impact Weapon . | . . . Slashing Weapon 3 | . 2 1 Piercing Weapon . | . . . Special Melee Weapon . | . . . Unidentified Prototypes 1 | . 1 . Parts Lost 6 | . 5 1 Power 2 | . 2 . Propulsion 3 | . 2 1 Utility . | . . . Weapon 1 | . 1 . Highest Loss Streak 3 | . 3 1 To Critical Strikes . | . . . Average Slot Usage (%) 93 | . 92 100 Engine 10 | . 11 5 Leg 20 | . 19 28 Hover 7 | . 7 . Storage 13 | . 13 14 Processor 12 | . 13 5 Energy Gun 13 | . 14 . Energy Cannon 11 | . 10 28 Naked Turns . | . . . Heaviest Build 18 | 3 18 17 Greatest Support 20 | 20 20 20 Greatest Overweight (x) 1 | . 1 . Average Overweight (x) . | . . . Largest Inventory Capacity 8 | 5 8 8 Average Capacity 7 | 5 7 8 Most Carried 8 | 4 8 8 Average Carried 7 | 2 7 7 Final Capacity 8 | 5 8 8 Final Carried 8 | 4 8 8 Class Distribution -------------------- 59% | Mutant 40% | Scavenger-Mutant Dominant Class ---------------- Mutant | -10/Materials Scavenger-Mutant | -10/Mines Resources | -11 -10 -10 ----------- Run | Jun Mat Min Matter Collected 439 | 240 117 82 Remotely . | . . . Salvage Created 642 | . 452 190 Parts 40 | . 28 12 Haulers Intercepted . | . . . Recyclers Shooed . | . . . Parts Field Recycled . | . . . Retrieved Matter . | . . . Parts Self-Destructed . | . . . Prevented . | . . . Kills | -11 -10 -10 ------- Run | Jun Mat Min Combat Hostiles Destroyed 17 | . 12 5 Melee 1 | . . 1 Guns 9 | . 9 . Cannons 7 | . 3 4 Classes Destroyed 4 | . 4 . Recycler 1 | . 1 . Watcher 3 | . 3 . Swarmer 5 | . 5 . Grunt 12 | . 7 5 Best Kill Streak 6 | . 6 3 Combat Bots Only 6 | . 6 3 Max Kills in Single Turn 1 | . 1 1 Gunslinging . | . . . Exploded . | . . . Melee 1 | . . 1 Uniques/NPCs Destroyed . | . . . Combat | -11 -10 -10 -------- Run | Jun Mat Min Damage Taken 955 | . 722 233 Core 250 | . 168 82 Absorbed by Shields . | . . . Regen/Repaired (Parts) 29 | . 29 . Core Remaining (%) 100 | 100 . . Volleys Fired 72 | . 62 10 Largest 2 | . 2 2 Hottest 140 | . 140 120 Shots Fired 111 | . 91 20 Gun 80 | . 80 . Cannon 27 | . 7 20 Launcher . | . . . Special 4 | . 4 . Kinetic . | . . . Thermal 111 | . 91 20 Explosive . | . . . Electromagnetic . | . . . Robot Hit Streak 13 | . 13 6 Robot Miss Streak 5 | . 5 2 Penetration Max . | . . . Secondary Targets . | . . . Shots Hit Robots 68 | . 54 14 Core Hits 32 | . 25 7 Critical Kills . | . . . Critical Parts Destroyed . | . . . Critical Strikes 2 | . 2 . Burn 2 | . 2 . Melee Attacks 4 | . 3 1 Impact . | . . . Slashing 4 | . 3 1 Piercing . | . . . Sneak Attacks . | . . . Combat Hostiles . | . . . Follow-up Attacks . | . . . Damage Inflicted 934 | . 683 251 Guns 529 | . 529 . Cannons 334 | . 106 228 Explosions . | . . . Melee 23 | . . 23 Ramming . | . . . Kinetic . | . . . Thermal 911 | . 683 228 Explosive . | . . . Electromagnetic . | . . . Impact . | . . . Slashing 23 | . . 23 Piercing . | . . . Highest Corruption . | . . . Average Corruption . | . . . Corruption Purged . | . . . Corruption Blocked . | . . . Overload Shots . | . . . Overflow Damage . | . . . Projectiles . | . . . Explosions . | . . . Melee . | . . . Knockbacks . | . . . Impact . | . . . Kinetic . | . . . Secondary . | . . . Self-Inflicted Damage . | . . . Shots . | . . . Rammed . | . . . Targets Rammed . | . . . Kicked . | . . . Crushed . | . . . Highest Temperature 340 | . 340 303 Average Temperature 145 | . 145 148 Received Heat Transfer 372 | . 237 135 Effects 6 | . 5 1 Energy Bleed 4 | . 3 1 Interference 2 | . 2 . Siege Activations . | . . . Robots Corrupted . | . . . Combat Hostiles . | . . . Parts Fried . | . . . Impact Corruptions . | . . . Robots Melted . | . . . Combat Hostiles . | . . . Parts Melted 6 | . 4 2 Heat Transferred 2293 | . 1812 481 Parts Sabotaged . | . . . Parts Stolen . | . . . Parts Stripped . | . . . Power Chain Reactions . | . . . Missiles Intercepted . | . . . Alert | -11 -10 -10 ------- Run | Jun Mat Min Peak Influence 257 | . 257 125 Initial . | . . . Average 85 | . 94 42 Maximum Alert Level 1 | . 1 . Low Security (%) 91 | 100 90 100 Level 1 8 | . 9 . Level 2 . | . . . Level 3 . | . . . Level 4 . | . . . Level 5 . | . . . High Security . | . . . Max Security . | . . . Squads Dispatched 3 | . 3 . Investigation 2 | . 2 . Extermination . | . . . Reinforcement 1 | . 1 . Assault . | . . . Garrison . | . . . Intercept . | . . . Searches Triggered . | . . . Construction Impeded . | . . . Haulers Reinforced . | . . . Active Scanning Responses . | . . . Cargo Convoy Interrupts . | . . . Stealth | -11 -10 -10 --------- Run | Jun Mat Min Distress Signals . | . . . Communications Jammed . | . . . Distress Signals . | . . . Times Spotted 24 | . 18 6 Peak Tracking Total 6 | . 6 4 Tactical Retreats . | . . . Traps | -11 -10 -10 ------- Run | Jun Mat Min Traps Triggered 2 | . 2 . Indirectly . | . . . Trap Hack Attempts . | . . . Triggered . | . . . Disarmed . | . . . Reprogrammed . | . . . Reused . | . . . Traps Extracted . | . . . Installed . | . . . Triggered . | . . . Machines | -11 -10 -10 ---------- Run | Jun Mat Min Machines Disabled . | . . . Max in Single Turn . | . . . Machines Repaired . | . . . Machines Sabotaged . | . . . Overloaded Fab Kills . | . . . Hacking | -11 -10 -10 --------- Run | Jun Mat Min Machines Accessed 6 | . 6 . Terminals 4 | . 4 . Fabricators . | . . . Repair Stations 1 | . 1 . Recycling Units 1 | . 1 . Scanalyzers . | . . . Garrison Access . | . . . Total Hacks 15 | . 15 . Successful 9 | . 9 . Failed 6 | . 6 . Catastrophic . | . . . Database Lockouts . | . . . Manual 6 | . 6 . Terminals 10 | . 10 . Fabricators . | . . . Repair Stations 3 | . 3 . Recycling Units 2 | . 2 . Scanalyzers . | . . . Garrison Access . | . . . Terminal Hacks 4 | . 4 . Prototype ID Bank 1 | . 1 . Alert Level 2 | . 2 . Locate Traps 1 | . 1 . Fabricator Hacks . | . . . Repair Station Hacks 2 | . 2 . Scan Component 1 | . 1 . Repair 1 | . 1 . Recycling Unit Hacks 1 | . 1 . Retrieve Components 1 | . 1 . Scanalyzer . | . . . Garrison Access Hacks . | . . . Unauthorized Hacks 2 | . 2 . Terminals 1 | . 1 . Botnet 1 | . 1 . Fabricators . | . . . Repair Stations . | . . . Recycling Units 1 | . 1 . Reject 1 | . 1 . Scanalyzers . | . . . Garrison Access . | . . . Data Cores Recovered . | . . . Used . | . . . Hacking Detections 6 | . 6 . Full Trace Events 1 | . 1 . Feedback Events . | . . . Feedback Blocked . | . . . Robot Schematics Acquired . | . . . Robots Built . | . . . Authchips . | . . . Time . | . . . Total Robot Build Rating . | . . . Part Schematics Acquired . | . . . Parts Built . | . . . Authchips . | . . . Time . | . . . Total Part Build Rating . | . . . Parts Repaired 1 | . 1 . Time 26 | . 26 . Parts Recycled . | . . . Recycled Matter . | . . . Retrieved Matter . | . . . Retrieved Components 3 | . 3 . Parts Scanalyzed . | . . . Part Schematics Acquired . | . . . Parts Damaged . | . . . Bothacking | -11 -10 -10 ------------ Run | Jun Mat Min Used RIF Installer . | . . . Robots Hacked . | . . . Non-combat . | . . . Combat . | . . . Robot Hacks Applied . | . . . Relay Couplers Released . | . . . Fabnet Peak Effective % . | . . . Robots Rewired . | . . . Allies Hacked . | . . . Hacks Repelled . | . . . Allies | -11 -10 -10 -------- Run | Jun Mat Min Total Allies . | . . . Largest Group . | . . . Highest-Rated Group . | . . . Highest-Rated Ally . | . . . Total Orders . | . . . Ally Attacks . | . . . Total Damage . | . . . Kills . | . . . Allies Corrupted . | . . . Allies Melted . | . . . Intel | -11 -10 -10 ------- Run | Jun Mat Min Robot Analysis Total . | . . . Derelict Logs Recovered . | . . . Drone Launches . | . . . Drone Recoveries . | . . . Exploration | -11 -10 -10 ------------- Run | Jun Mat Min Turns Passed 1093 | 56 954 83 Spaces Moved 804 | 44 726 34 Core 11 | 11 . . Treads . | . . . Legs 486 | 33 419 34 Wheels . | . . . Hover 307 | . 307 . Flight . | . . . Fastest Speed 50 | 50 56 120 Average Speed 94 | 102 93 120 Slowest Speed 120 | 120 120 120 Overloaded Moves . | . . . Propulsion Burnouts . | . . . Robots Hopped . | . . . Cave-ins Triggered . | . . . Exploration Rate (%) 39 | 4 98 17 Regions Visited 2 Branch Regions 1 Pre-discovered Areas . | . . . Known Exits Taken . | . . . Unknown Exits Taken 2 | 1 1 . Scrap Searched . | . . . Spaces Dug 4 | . 4 . Terrain Destroyed 5 | . 5 . Melee 3 | . 3 . Projectile 2 | . 2 . AOE . | . . . Terrain Rammed . | . . . Walls Destroyed . | . . . Machines Disabled . | . . . Actions | -11 -10 -10 --------- Run | Jun Mat Min Total 1010 | 55 900 55 Wait 52 | . 51 1 Move 802 | 43 725 34 Hop . | . . . Pick Up 30 | 8 20 2 Fast Attach 6 | . 4 2 Attach 14 | 4 10 . Detach 1 | . 1 . Swap 14 | . 11 3 Drop 15 | . 13 2 Fire 72 | . 62 10 Melee 4 | . 3 1 Ram . | . . . Kick . | . . . Crush . | . . . Escape Stasis . | . . . Rewire . | . . . Trap . | . . . Miscellaneous . | . . . Route ------- -11/Junkyard -10/Materials (discovered 5 exits: [*Mat x3] / [*Min x2]) -10/Mines History --------- Turn | Location | Event 4 | -11/Junkyard | Discovered new exit (range 14) 57 | -11/Junkyard | Entered Materials 122 | -10/Materials | Discovered new exit (range 5) 317 | -10/Materials | Build established: Mutant 365 | -10/Materials | Core integrity fell below 50% 408 | -10/Materials | Discovered new exit (range 10) 538 | -10/Materials | Discovered new exit (range 10) 574 | -10/Materials | Discovered new exit (range 5) 660 | -10/Materials | Repaired Hover Unit 711 | -10/Materials | Lost 3 parts (1p2n) 859 | -10/Materials | Discovered new exit (range 4) 953 | -10/Materials | Build established: Scavenger-Mutant 1011 | -10/Materials | Entered Mines 1018 | -10/Mines | Core integrity fell below 20% 1094 | -10/Mines | Destroyed by G-47 Trooper with Particle Gun Last Messages --------------- Something is scanning the area. 01017_ G-34 Mercenary destroyed. 01025_ Overheating: Energy bleed (-20). 01025_ Aluminum Leg destroyed. 01026_ Acquired Aluminum Leg. 01033_ Acquired 31 matter. 01034_ Particle Gun melted. 01034_ Aluminum Leg melted. 01034_ G-47 Trooper destroyed. 01035_ Acquired 51 matter. 01040_ Dropped Lgt. Ion Engine. 01040_ Acquired Lgt. Nuclear Core. 01044_ Dropped Imp. EM Shotgun. 01045_ Acquired Imp. Heat Sink. 01046_ Discarded Visual Processing Unit. 01048_ Acquired Imp. EM Shotgun. 01070_ T-07 Excavator is excavating. 01082_ G-34 Mercenary destroyed. 01085_ G-47 Trooper destroyed. 01088_ G-34 Mercenary destroyed. Map ----- +----------------------------------------------------+ | ????????????????????????????##########?????? | | ????????????????????????????# #?????? | | ????????????????????????????# #?????? | | ????????????????????????????#""" #?????? | | ????????????????????????????#""" #?????? | | ????????????????????????????#""" #?????? | | ????????????????????????????# #?????? | | ????????????????????????????# #?????? | | ???????????????????????##???# *#?????? | | ??????????????????????? ???# * #?????? | | ??????????????????????? ???# [#?????? | | ??????????????????????? ???####### #?????? | | ?????????????????????## ???####??# #?????? | | ????????????????????? ??## ##?# #?????? | | ?????????????????????# ??# ### #?????? | | ?????????????????????# #??# ## #?????? | | ?????????????????????# #??# #?????? | | ?????????????????????# #??## #?????? | | ?????????????????????# #???# #?????? | | ?????????????????????# ##### #?????? | | ?????????????????????# #????? | | ?????????????????????# ## #???? | | ?????????????????????##### #### #?? | | ?????????????????????????#** ### #? | | ????????????????????????##%% ### #? | | ???????????????????????##@= ### #? | | ??????????????????#=#### #??## ##? | | ??????????????????#*%= ##???? ###?? | | ??????????????????#[### ###????? #???? | | ??????????????????????## ##??????? #???? | | ???????????????????????## ##????????? ????? | | ????????????????????????# #???????????????? | | ????????????????????????#g #???????????????? | | ???????????????????????? #???????????????? | | ????????????????????????# #???????????????? | | ????????????????????????# ???????????????? | | ????????????????????????# #???????????????? | | ????????????????????????? #???????????????? | | ????????????????????????? #???????????????? | | ?????????????????????????###???????????????? | | ???????????????????????????????????????????? | | ???????????????????????????????????????????? | | ???????????????????????????????????????????? | | ???????????????????????????????????????????? | | ???????????????????????????????????????????? | | ???????????????????????????????????????????? | | ???????????????????????????????????????????? | | ???????????????????????????????????????????? | | ???????????????????????????????????????????? | | ???????????????????????????????????????????? | +----------------------------------------------------+ Best States ------------- Heat Dissipation 39 Energy Generation 14 Energy Capacity 265 Matter Stores 300 Matter Capacity 300 Sight Range 18 Terrain Scan Density 10 Evasion (%) 55 Item Schematics ----------------- None Robot Schematics ------------------ None Fabricated ------------ Nothing Alien Tech Used ----------------- None Achievements -------------- None Challenges ------------ None Game ------ Seed IntegratedGammaMount Manual? 0 Play Time 00:25:07 Cumulative 100.1 hours Start 2023.05.24 @ 21:40:56 End 2023.05.24 @ 22:05:52 Sessions 1 Manual Loads 0 Difficulty Rogue Special Mode None Game No. 10 Rogue 8 Adventurer 0 Explorer 2 Win Type - Total 3 Types 0/0/0/3/0/0/0/0/0 Lore% 25 Gallery% 26 Achievement% 39 Wizard Run 0 Options --------- ASCII 0 Keyboard 0 Movement Mouse Keybinds 0 Fullscreen 1 Font 18/SmallcapsGlow Map View 70x50 Tactical HUD 1 Map Filters NONE Filters NONE Steam 1 RUN: 9065f043-6326-4e2c-9598-84ca8c1447a1